[Event "Late-Titled-Tuesday-Blitz-March-26-2024"]
[Site "Chess.com"]
[Date "2024.03.26"]
[Round "5"]
[White "gorgeous1083"]
[Black "Heydarli77"]
[Result "0-1"]
[WhiteElo "2049"]
[BlackElo "2461"]
[TimeControl "180+1"]
[EndTime "14:56:25 PDT"]
[Termination "Heydarli77 won by checkmate"]

1. d4 {[%clk 0:03:00.9]} 1... Nf6 {[%clk 0:02:53.9]} 2. c4 {[%clk 0:03:01.2]}
2... g6 {[%clk 0:02:51.6]} 3. Nc3 {[%clk 0:03:01.4]} 3... Bg7 {[%clk 0:02:51.4]}
4. e4 {[%clk 0:03:02.1]} 4... d6 {[%clk 0:02:51.8]} 5. Nf3 {[%clk 0:03:02.1]}
5... O-O {[%clk 0:02:52]} 6. Be2 {[%clk 0:03:02.7]} 6... e5 {[%clk 0:02:50.3]}
7. Be3 {[%clk 0:03:03.2]} 7... exd4 {[%clk 0:02:46]} 8. Nxd4 {[%clk 0:03:02.8]}
8... Re8 {[%clk 0:02:45.5]} 9. f3 {[%clk 0:03:02.9]} 9... Nc6 {[%clk 0:02:42.1]}
10. O-O {[%clk 0:02:59.9]} 10... Nh5 {[%clk 0:02:42.2]} 11. Qd2 {[%clk
0:02:46.5]} 11... Nf4 {[%clk 0:02:37.2]} 12. Nxc6 {[%clk 0:02:38.1]} 12... Nxe2+
{[%clk 0:02:36.8]} 13. Nxe2 {[%clk 0:02:36]} 13... bxc6 {[%clk 0:02:36.4]} 14.
Bd4 {[%clk 0:02:33.4]} 14... Be6 {[%clk 0:02:33.9]} 15. Bxg7 {[%clk 0:02:30.8]}
15... Kxg7 {[%clk 0:02:33.6]} 16. Rad1 {[%clk 0:02:28.6]} 16... Qf6 {[%clk
0:02:31.6]} 17. b3 {[%clk 0:02:26.8]} 17... a5 {[%clk 0:02:30.2]} 18. Nc3 {[%clk
0:02:07.5]} 18... Qe5 {[%clk 0:02:25.7]} 19. Qd4 {[%clk 0:02:04.5]} 19... f6
{[%clk 0:02:22.2]} 20. Rfe1 {[%clk 0:01:50.7]} 20... c5 {[%clk 0:02:21]} 21.
Qxe5 {[%clk 0:01:49]} 21... fxe5 {[%clk 0:02:21.7]} 22. Nb5 {[%clk 0:01:42]}
22... Re7 {[%clk 0:02:19.6]} 23. Kf2 {[%clk 0:01:37.2]} 23... a4 {[%clk
0:02:19.2]} 24. Rd2 {[%clk 0:01:34.1]} 24... Bf7 {[%clk 0:02:18.5]} 25. Ree2
{[%clk 0:01:20.4]} 25... Be8 {[%clk 0:02:18.1]} 26. Nc3 {[%clk 0:01:17.9]} 26...
Bc6 {[%clk 0:02:14.5]} 27. Nd5 {[%clk 0:01:16.1]} 27... Bxd5 {[%clk 0:02:13.2]}
28. exd5 {[%clk 0:01:15.5]} 28... Ree8 {[%clk 0:02:13.4]} 29. Rb2 {[%clk
0:01:10.2]} 29... Reb8 {[%clk 0:02:10.9]} 30. bxa4 {[%clk 0:01:06.9]} 30... Rb4
{[%clk 0:02:06.4]} 31. Rxb4 {[%clk 0:01:01]} 31... cxb4 {[%clk 0:02:06.6]} 32.
Rb2 {[%clk 0:01:01.6]} 32... Rxa4 {[%clk 0:02:06.2]} 33. Ke2 {[%clk 0:00:59.2]}
33... Kf6 {[%clk 0:02:05.2]} 34. Kd3 {[%clk 0:00:57.4]} 34... Ra3+ {[%clk
0:02:02]} 35. Ke4 {[%clk 0:00:55.7]} 35... h5 {[%clk 0:01:53.5]} 36. h4 {[%clk
0:00:49]} 36... g5 {[%clk 0:01:50.3]} 37. g3 {[%clk 0:00:47]} 37... g4 {[%clk
0:01:49.1]} 38. fxg4 {[%clk 0:00:41.7]} 38... hxg4 {[%clk 0:01:49.1]} 39. Rxb4
{[%clk 0:00:37.2]} 39... Rxa2 {[%clk 0:01:45]} 40. Ke3 {[%clk 0:00:32.7]} 40...
Ra3+ {[%clk 0:01:42.8]} 41. Kf2 {[%clk 0:00:32.7]} 41... Rc3 {[%clk 0:01:41.5]}
42. Kg2 {[%clk 0:00:30]} 42... Kf5 {[%clk 0:01:41.2]} 43. Ra4 {[%clk 0:00:28.7]}
43... e4 {[%clk 0:01:40.9]} 44. Kf2 {[%clk 0:00:27.7]} 44... Ke5 {[%clk
0:01:38.5]} 45. Kg2 {[%clk 0:00:26.7]} 45... e3 {[%clk 0:01:37.8]} 46. Kf1
{[%clk 0:00:21.3]} 46... Ke4 {[%clk 0:01:35.7]} 47. c5+ {[%clk 0:00:19.1]} 47...
Kf3 {[%clk 0:01:35.7]} 48. cxd6 {[%clk 0:00:18.9]} 48... Rc1# {[%clk 0:01:34.9]}
0-1

[Event "Late-Titled-Tuesday-Blitz-March-26-2024"]
[Site "Chess.com"]
[Date "2024.03.26"]
[Round "5"]
[White "GiorgianBarbosa"]
[Black "kids2010"]
[Result "0-1"]
[WhiteElo "2534"]
[BlackElo "2809"]
[TimeControl "180+1"]
[EndTime "14:56:38 PDT"]
[Termination "kids2010 won by resignation"]

1. e4 {[%clk 0:03:00]} 1... c6 {[%clk 0:02:59.8]} 2. d3 {[%clk 0:02:57.5]} 2...
d5 {[%clk 0:03:00.1]} 3. Nd2 {[%clk 0:02:54.1]} 3... e5 {[%clk 0:02:58]} 4. g3
{[%clk 0:02:53.7]} 4... Bd6 {[%clk 0:02:57.6]} 5. Bg2 {[%clk 0:02:54]} 5... f6
{[%clk 0:02:57.9]} 6. exd5 {[%clk 0:02:53]} 6... Ne7 {[%clk 0:02:56.3]} 7. dxc6
{[%clk 0:02:52.5]} 7... Nbxc6 {[%clk 0:02:57.1]} 8. Ne2 {[%clk 0:02:52.1]} 8...
O-O {[%clk 0:02:56.9]} 9. O-O {[%clk 0:02:52.1]} 9... Bg4 {[%clk 0:02:56]} 10.
h3 {[%clk 0:02:48]} 10... Bh5 {[%clk 0:02:55.4]} 11. Ne4 {[%clk 0:02:41.7]}
11... f5 {[%clk 0:02:47.8]} 12. Nxd6 {[%clk 0:02:38.9]} 12... Qxd6 {[%clk
0:02:48.7]} 13. f3 {[%clk 0:02:27.8]} 13... e4 {[%clk 0:02:10.3]} 14. dxe4
{[%clk 0:02:10.6]} 14... Qxd1 {[%clk 0:02:08.6]} 15. Rxd1 {[%clk 0:02:05.7]}
15... fxe4 {[%clk 0:02:09.2]} 16. Nf4 {[%clk 0:02:01.7]} 16... exf3 {[%clk
0:02:00.5]} 17. Nxh5 {[%clk 0:01:57.2]} 17... fxg2 {[%clk 0:01:59.2]} 18. Kxg2
{[%clk 0:01:46.8]} 18... Nf5 {[%clk 0:01:43]} 19. Nf4 {[%clk 0:01:13.7]} 19...
Ncd4 {[%clk 0:01:26.7]} 20. Nd5 {[%clk 0:00:17]} 20... Nxc2 {[%clk 0:01:18.2]}
21. Rb1 {[%clk 0:00:16.8]} 21... Rad8 {[%clk 0:01:18.6]} 22. Kg1 {[%clk
0:00:13.4]} 22... Nxg3 {[%clk 0:01:04.9]} 23. Bg5 {[%clk 0:00:12.5]} 23... Rde8
{[%clk 0:00:55.1]} 24. Ne7+ {[%clk 0:00:11.1]} 24... Kh8 {[%clk 0:00:54]} 25.
Rd2 {[%clk 0:00:11.2]} 25... Ne4 {[%clk 0:00:50]} 26. Rxc2 {[%clk 0:00:08.1]}
26... Nxg5 {[%clk 0:00:50]} 27. Re1 {[%clk 0:00:08.1]} 27... Nf3+ {[%clk
0:00:49.3]} 0-1

[Event "Late-Titled-Tuesday-Blitz-March-26-2024"]
[Site "Chess.com"]
[Date "2024.03.26"]
[Round "5"]
[White "Andrei_Skvortsov"]
[Black "vladoboch"]
[Result "1-0"]
[WhiteElo "2713"]
[BlackElo "2483"]
[TimeControl "180+1"]
[EndTime "14:56:40 PDT"]
[Termination "Andrei_Skvortsov won on time"]

1. e4 {[%clk 0:03:00.9]} 1... c5 {[%clk 0:02:50]} 2. d4 {[%clk 0:03:00.7]} 2...
cxd4 {[%clk 0:02:49.7]} 3. Qxd4 {[%clk 0:03:01.6]} 3... Nc6 {[%clk 0:02:49.3]}
4. Qd3 {[%clk 0:03:02.5]} 4... e5 {[%clk 0:02:47.1]} 5. Nc3 {[%clk 0:03:02.3]}
5... Nf6 {[%clk 0:02:45.6]} 6. Bg5 {[%clk 0:03:02.1]} 6... Bb4 {[%clk
0:02:35.5]} 7. Ne2 {[%clk 0:03:00.9]} 7... O-O {[%clk 0:02:35.1]} 8. O-O-O
{[%clk 0:03:00.3]} 8... a6 {[%clk 0:02:32]} 9. Nd5 {[%clk 0:02:59.6]} 9... Be7
{[%clk 0:02:28.1]} 10. Nxe7+ {[%clk 0:03:00]} 10... Qxe7 {[%clk 0:02:27.6]} 11.
Nc3 {[%clk 0:02:58.7]} 11... Nb4 {[%clk 0:02:22]} 12. Qc4 {[%clk 0:02:54.6]}
12... b5 {[%clk 0:02:09.2]} 13. Qe2 {[%clk 0:02:42.5]} 13... h6 {[%clk
0:01:55.2]} 14. Bxf6 {[%clk 0:02:35.5]} 14... Qxf6 {[%clk 0:01:56.1]} 15. a3
{[%clk 0:02:35.7]} 15... Nc6 {[%clk 0:01:54.9]} 16. Nd5 {[%clk 0:02:35.4]} 16...
Qg5+ {[%clk 0:01:55.2]} 17. Kb1 {[%clk 0:02:35.6]} 17... d6 {[%clk 0:01:53.2]}
18. h4 {[%clk 0:02:33.2]} 18... Qd8 {[%clk 0:01:48.9]} 19. g4 {[%clk 0:02:31.1]}
19... Nd4 {[%clk 0:01:44.4]} 20. Qe3 {[%clk 0:02:30.7]} 20... Bxg4 {[%clk
0:01:42.6]} 21. Rd2 {[%clk 0:02:29.2]} 21... Be6 {[%clk 0:01:34.6]} 22. f4
{[%clk 0:02:24.8]} 22... Bxd5 {[%clk 0:01:32.9]} 23. exd5 {[%clk 0:02:25.7]}
23... Qf6 {[%clk 0:01:32.5]} 24. fxe5 {[%clk 0:02:24.5]} 24... dxe5 {[%clk
0:01:32.9]} 25. Rf2 {[%clk 0:02:20.7]} 25... Qd6 {[%clk 0:01:26.7]} 26. Rg1
{[%clk 0:02:20.9]} 26... Kh8 {[%clk 0:00:56.6]} 27. h5 {[%clk 0:02:19.4]} 27...
Qxd5 {[%clk 0:00:32.4]} 28. Rf6 {[%clk 0:01:54.9]} 28... Ne6 {[%clk 0:00:07.9]}
29. Bd3 {[%clk 0:01:10.6]} 29... Nf4 {[%clk 0:00:05.8]} 30. Be4 {[%clk
0:01:07.6]} 30... Qd8 {[%clk 0:00:02.5]} 31. Rf5 {[%clk 0:01:05]} 31... Rc8
{[%clk 0:00:02.4]} 32. Rxe5 {[%clk 0:01:04.2]} 32... Ne6 {[%clk 0:00:01.9]} 33.
Bd3 {[%clk 0:01:01]} 33... Qd4 {[%clk 0:00:02.4]} 34. Rxe6 {[%clk 0:01:01.2]}
1-0

[Event "Late-Titled-Tuesday-Blitz-March-26-2024"]
[Site "Chess.com"]
[Date "2024.03.26"]
[Round "5"]
[White "Blackwhite017"]
[Black "Nekoo04"]
[Result "0-1"]
[WhiteElo "2095"]
[BlackElo "2382"]
[TimeControl "180+1"]
[EndTime "14:56:41 PDT"]
[Termination "Nekoo04 won by checkmate"]

1. e4 {[%clk 0:02:03.9]} 1... c5 {[%clk 0:02:59.7]} 2. Nf3 {[%clk 0:02:03.5]}
2... d6 {[%clk 0:02:57.7]} 3. Nc3 {[%clk 0:02:03]} 3... Nf6 {[%clk 0:02:57.6]}
4. e5 {[%clk 0:02:03.3]} 4... dxe5 {[%clk 0:02:58.5]} 5. Nxe5 {[%clk 0:02:04.2]}
5... a6 {[%clk 0:02:59]} 6. a4 {[%clk 0:02:03.9]} 6... Qc7 {[%clk 0:02:59.1]} 7.
Nc4 {[%clk 0:02:01.3]} 7... Nc6 {[%clk 0:02:56]} 8. d3 {[%clk 0:01:57.2]} 8...
Be6 {[%clk 0:02:49.2]} 9. g3 {[%clk 0:01:53.7]} 9... Bxc4 {[%clk 0:02:47.9]} 10.
dxc4 {[%clk 0:01:54.6]} 10... e6 {[%clk 0:02:46.7]} 11. Bg2 {[%clk 0:01:42.4]}
11... Be7 {[%clk 0:02:45.9]} 12. Qe2 {[%clk 0:01:41.1]} 12... Nd4 {[%clk
0:02:44.4]} 13. Qd3 {[%clk 0:01:34.8]} 13... Rd8 {[%clk 0:02:43.3]} 14. Ne4
{[%clk 0:01:23.3]} 14... Nxe4 {[%clk 0:02:32.5]} 15. Bxe4 {[%clk 0:01:22.3]}
15... Qa5+ {[%clk 0:01:46.4]} 16. Bd2 {[%clk 0:01:17.2]} 16... Qb6 {[%clk
0:01:30.9]} 17. b3 {[%clk 0:00:51.2]} 17... f5 {[%clk 0:01:08.3]} 18. Bg2 {[%clk
0:00:47]} 18... Bf6 {[%clk 0:01:08.3]} 19. O-O {[%clk 0:00:17.7]} 19... Nxb3
{[%clk 0:01:03]} 20. Qxb3 {[%clk 0:00:16.8]} 20... Qxb3 {[%clk 0:01:03.2]} 21.
cxb3 {[%clk 0:00:17.7]} 21... Bxa1 {[%clk 0:01:03.6]} 22. Rxa1 {[%clk
0:00:16.8]} 22... Rxd2 {[%clk 0:01:03.3]} 23. Bxb7 {[%clk 0:00:17.3]} 23... a5
{[%clk 0:00:59.7]} 24. Re1 {[%clk 0:00:17.4]} 24... Kf7 {[%clk 0:00:59.6]} 25.
Re5 {[%clk 0:00:17.4]} 25... Rb8 {[%clk 0:00:58.5]} 26. Ba6 {[%clk 0:00:13.6]}
26... Rxb3 {[%clk 0:00:57]} 27. Rxc5 {[%clk 0:00:12.6]} 27... Rbb2 {[%clk
0:00:55]} 28. Bc8 {[%clk 0:00:02.7]} 28... Rxf2 {[%clk 0:00:48.3]} 29. Rxa5
{[%clk 0:00:02.7]} 29... Rxh2 {[%clk 0:00:47.5]} 30. Kf1 {[%clk 0:00:02.6]}
30... Rb1# {[%clk 0:00:46.7]} 0-1

[Event "Late-Titled-Tuesday-Blitz-March-26-2024"]
[Site "Chess.com"]
[Date "2024.03.26"]
[Round "5"]
[White "SuanFernandes"]
[Black "dianamirza"]
[Result "1-0"]
[WhiteElo "2294"]
[BlackElo "1973"]
[TimeControl "180+1"]
[EndTime "14:56:45 PDT"]
[Termination "SuanFernandes won by resignation"]

1. d4 {[%clk 0:02:58.7]} 1... Nf6 {[%clk 0:02:45.7]} 2. c4 {[%clk 0:02:57.2]}
2... g6 {[%clk 0:02:45.1]} 3. Nc3 {[%clk 0:02:57.9]} 3... Bg7 {[%clk 0:02:44.9]}
4. e4 {[%clk 0:02:58.3]} 4... d6 {[%clk 0:02:45.4]} 5. Nf3 {[%clk 0:02:58.9]}
5... O-O {[%clk 0:02:45.9]} 6. Be2 {[%clk 0:02:59.7]} 6... c5 {[%clk 0:02:46.5]}
7. O-O {[%clk 0:03:00.4]} 7... cxd4 {[%clk 0:02:46.9]} 8. Nxd4 {[%clk
0:03:01.3]} 8... Nc6 {[%clk 0:02:46.4]} 9. Be3 {[%clk 0:03:01.7]} 9... Nxd4
{[%clk 0:02:44.5]} 10. Bxd4 {[%clk 0:03:02.6]} 10... a6 {[%clk 0:02:44.8]} 11.
Rc1 {[%clk 0:03:01.3]} 11... Qc7 {[%clk 0:02:45.2]} 12. b3 {[%clk 0:02:56]}
12... Bd7 {[%clk 0:02:43.7]} 13. Nd5 {[%clk 0:02:55.6]} 13... Nxd5 {[%clk
0:02:43]} 14. cxd5 {[%clk 0:02:53.8]} 14... Qd8 {[%clk 0:02:38.7]} 15. f4 {[%clk
0:02:47.2]} 15... Rc8 {[%clk 0:02:36.1]} 16. Bxg7 {[%clk 0:02:36.2]} 16... Kxg7
{[%clk 0:02:37]} 17. Qd4+ {[%clk 0:02:36.2]} 17... Kg8 {[%clk 0:02:33]} 18. h4
{[%clk 0:02:32.3]} 18... Rxc1 {[%clk 0:02:16.6]} 19. Rxc1 {[%clk 0:02:26.8]}
19... e5 {[%clk 0:02:05.5]} 20. fxe5 {[%clk 0:02:10.1]} 20... dxe5 {[%clk
0:01:55.2]} 21. Qxe5 {[%clk 0:02:09.9]} 21... Qxh4 {[%clk 0:01:54.5]} 22. Bf3
{[%clk 0:01:51.5]} 22... Re8 {[%clk 0:01:44.9]} 23. Qd6 {[%clk 0:01:50]} 23...
Qe7 {[%clk 0:01:42.7]} 24. Qxe7 {[%clk 0:01:42.4]} 24... Rxe7 {[%clk 0:01:43.6]}
25. Rc7 {[%clk 0:01:42.8]} 25... f5 {[%clk 0:01:28.7]} 26. d6 {[%clk 0:01:42.1]}
26... Rg7 {[%clk 0:01:27.3]} 27. e5 {[%clk 0:01:40.4]} 27... Kf8 {[%clk
0:01:19.2]} 28. Rxb7 {[%clk 0:01:36.5]} 28... Be6 {[%clk 0:01:13.4]} 29. Rxg7
{[%clk 0:01:34]} 29... Kxg7 {[%clk 0:01:14.3]} 30. Kf2 {[%clk 0:01:33.1]} 30...
Kf7 {[%clk 0:01:14.3]} 31. Bc6 {[%clk 0:01:32.1]} 31... g5 {[%clk 0:01:08.5]}
32. g3 {[%clk 0:01:31.2]} 32... h5 {[%clk 0:01:08.8]} 33. Bb7 {[%clk 0:01:23.3]}
33... a5 {[%clk 0:01:08.1]} 34. Bf3 {[%clk 0:01:18.6]} 34... Kg6 {[%clk
0:00:55.4]} 35. a3 {[%clk 0:01:11.1]} 35... g4 {[%clk 0:00:31.3]} 36. Bd5 {[%clk
0:01:10.6]} 36... Kf7 {[%clk 0:00:30.3]} 37. Bc4 {[%clk 0:00:57.5]} 37... f4
{[%clk 0:00:17.6]} 38. Bxe6+ {[%clk 0:00:56]} 38... Kxe6 {[%clk 0:00:17.6]} 39.
gxf4 {[%clk 0:00:56.9]} 39... h4 {[%clk 0:00:17.6]} 40. b4 {[%clk 0:00:57.2]}
40... axb4 {[%clk 0:00:17.5]} 41. axb4 {[%clk 0:00:58.1]} 41... h3 {[%clk
0:00:17.2]} 42. Kg3 {[%clk 0:00:58.1]} 1-0

[Event "Late-Titled-Tuesday-Blitz-March-26-2024"]
[Site "Chess.com"]
[Date "2024.03.26"]
[Round "5"]
[White "Evandro_Barbosa"]
[Black "Koalaskakistis"]
[Result "0-1"]
[WhiteElo "2659"]
[BlackElo "2485"]
[TimeControl "180+1"]
[EndTime "14:56:46 PDT"]
[Termination "Koalaskakistis won by resignation"]

1. e4 {[%clk 0:03:00.9]} 1... c5 {[%clk 0:02:55.6]} 2. Nf3 {[%clk 0:03:01.1]}
2... Nc6 {[%clk 0:02:55.1]} 3. d4 {[%clk 0:03:01.5]} 3... cxd4 {[%clk 0:02:55]}
4. Nxd4 {[%clk 0:03:02.4]} 4... Nf6 {[%clk 0:02:55.2]} 5. Nc3 {[%clk 0:03:02.6]}
5... e5 {[%clk 0:02:55.9]} 6. Ndb5 {[%clk 0:03:02.9]} 6... d6 {[%clk 0:02:56.5]}
7. Bg5 {[%clk 0:03:03.1]} 7... a6 {[%clk 0:02:56.5]} 8. Na3 {[%clk 0:03:03.7]}
8... b5 {[%clk 0:02:56.4]} 9. Bxf6 {[%clk 0:03:04.1]} 9... gxf6 {[%clk
0:02:57.3]} 10. Nd5 {[%clk 0:03:04.4]} 10... f5 {[%clk 0:02:57]} 11. Bd3 {[%clk
0:03:04.4]} 11... Be6 {[%clk 0:02:41.4]} 12. O-O {[%clk 0:03:04.1]} 12... Bg7
{[%clk 0:02:39]} 13. Qh5 {[%clk 0:03:01.2]} 13... Rc8 {[%clk 0:02:17.6]} 14. c4
{[%clk 0:02:58.8]} 14... bxc4 {[%clk 0:02:08.2]} 15. Bxc4 {[%clk 0:02:43.9]}
15... fxe4 {[%clk 0:01:58.5]} 16. Ne3 {[%clk 0:02:19.6]} 16... O-O {[%clk
0:01:55.2]} 17. Bxe6 {[%clk 0:02:01]} 17... fxe6 {[%clk 0:01:55.3]} 18. Qg4
{[%clk 0:02:00.4]} 18... Nd4 {[%clk 0:01:51.3]} 19. Qxe4 {[%clk 0:01:42.9]}
19... d5 {[%clk 0:01:51.6]} 20. Qd3 {[%clk 0:01:37.7]} 20... Qb6 {[%clk
0:01:51.4]} 21. b3 {[%clk 0:01:18]} 21... e4 {[%clk 0:01:49.1]} 22. Qd1 {[%clk
0:01:17.5]} 22... Qa5 {[%clk 0:01:30.5]} 23. Nb1 {[%clk 0:00:35.8]} 23... Nxb3
{[%clk 0:01:26.5]} 24. axb3 {[%clk 0:00:26.7]} 24... Qxa1 {[%clk 0:01:22.4]} 25.
Qg4 {[%clk 0:00:27.2]} 25... Qe5 {[%clk 0:01:12.2]} 26. Nd2 {[%clk 0:00:24]}
26... h5 {[%clk 0:01:06.9]} 27. Qh3 {[%clk 0:00:22.3]} 27... Rc3 {[%clk
0:01:03]} 28. Re1 {[%clk 0:00:15.5]} 28... d4 {[%clk 0:00:57.3]} 29. Nec4 {[%clk
0:00:13.7]} 29... Rxh3 {[%clk 0:00:57.4]} 30. Nxe5 {[%clk 0:00:12.8]} 30... Rc3
{[%clk 0:00:53.6]} 31. Nxe4 {[%clk 0:00:10.5]} 31... Bxe5 {[%clk 0:00:48.5]} 32.
Nxc3 {[%clk 0:00:10.4]} 32... dxc3 {[%clk 0:00:49.4]} 33. Rxe5 {[%clk
0:00:10.5]} 33... c2 {[%clk 0:00:46.1]} 34. Rc5 {[%clk 0:00:09.5]} 34... Rd8
{[%clk 0:00:46.2]} 0-1

[Event "Late-Titled-Tuesday-Blitz-March-26-2024"]
[Site "Chess.com"]
[Date "2024.03.26"]
[Round "5"]
[White "publicaccountcze"]
[Black "financieru"]
[Result "1-0"]
[WhiteElo "2262"]
[BlackElo "2405"]
[TimeControl "180+1"]
[EndTime "14:56:50 PDT"]
[Termination "publicaccountcze won on time"]

1. e4 {[%clk 0:03:00.9]} 1... c5 {[%clk 0:02:53.8]} 2. Nf3 {[%clk 0:02:58.7]}
2... e6 {[%clk 0:02:54.5]} 3. d4 {[%clk 0:02:58.4]} 3... cxd4 {[%clk 0:02:55.4]}
4. Nxd4 {[%clk 0:02:59.1]} 4... a6 {[%clk 0:02:56.1]} 5. Bd3 {[%clk 0:02:55.3]}
5... d6 {[%clk 0:02:56.7]} 6. Nc3 {[%clk 0:02:49.7]} 6... Nf6 {[%clk 0:02:57.4]}
7. f4 {[%clk 0:02:48.4]} 7... Be7 {[%clk 0:02:57.9]} 8. Qf3 {[%clk 0:02:48.4]}
8... O-O {[%clk 0:02:58.2]} 9. Be3 {[%clk 0:02:48.5]} 9... Nc6 {[%clk 0:02:57]}
10. O-O-O {[%clk 0:02:48.5]} 10... Qa5 {[%clk 0:02:54.6]} 11. Nb3 {[%clk
0:02:43.4]} 11... Qc7 {[%clk 0:02:50.6]} 12. g4 {[%clk 0:02:44.1]} 12... Nd7
{[%clk 0:02:42.2]} 13. g5 {[%clk 0:02:29.8]} 13... b5 {[%clk 0:02:34.9]} 14. f5
{[%clk 0:02:28.7]} 14... Nde5 {[%clk 0:02:33.9]} 15. Qh3 {[%clk 0:02:19.4]}
15... Re8 {[%clk 0:02:29.4]} 16. f6 {[%clk 0:02:17.6]} 16... Bf8 {[%clk
0:02:27.1]} 17. Rhf1 {[%clk 0:02:15.5]} 17... Bb7 {[%clk 0:01:57.1]} 18. Rf4
{[%clk 0:02:13.4]} 18... Rac8 {[%clk 0:01:22.9]} 19. Rh4 {[%clk 0:02:04.7]}
19... h6 {[%clk 0:01:22.5]} 20. fxg7 {[%clk 0:02:00.6]} 20... Bxg7 {[%clk
0:01:21.4]} 21. gxh6 {[%clk 0:01:58]} 21... Bf6 {[%clk 0:01:21.1]} 22. Rg1+
{[%clk 0:01:51.3]} 22... Kh8 {[%clk 0:01:19.8]} 23. Rf4 {[%clk 0:01:36]} 23...
Nxd3+ {[%clk 0:01:04.1]} 24. cxd3 {[%clk 0:01:35.2]} 24... Be5 {[%clk 0:01:05]}
25. d4 {[%clk 0:01:24.9]} 25... Nxd4 {[%clk 0:00:34.8]} 26. Bxd4 {[%clk
0:01:22.3]} 26... b4 {[%clk 0:00:30.6]} 27. Bxe5+ {[%clk 0:01:17.3]} 27... dxe5
{[%clk 0:00:31.5]} 28. Qh4 {[%clk 0:01:18]} 28... Qe7 {[%clk 0:00:25]} 29. Qh5
{[%clk 0:01:18.3]} 29... exf4 {[%clk 0:00:17.6]} 30. Rg7 {[%clk 0:01:18.9]}
30... Qf6 {[%clk 0:00:14.4]} 31. Rxf7 {[%clk 0:01:17.5]} 31... Rxc3+ {[%clk
0:00:09.2]} 32. Kb1 {[%clk 0:01:06.4]} 32... Bxe4+ {[%clk 0:00:04.8]} 33. Ka1
{[%clk 0:01:07.1]} 33... Qd4 {[%clk 0:00:02.6]} 34. Rg7 {[%clk 0:00:51.5]} 1-0

[Event "Late-Titled-Tuesday-Blitz-March-26-2024"]
[Site "Chess.com"]
[Date "2024.03.26"]
[Round "5"]
[White "Bilan_Danila"]
[Black "a-z30"]
[Result "1-0"]
[WhiteElo "2635"]
[BlackElo "2470"]
[TimeControl "180+1"]
[EndTime "14:56:53 PDT"]
[Termination "Bilan_Danila won on time"]

1. d4 {[%clk 0:03:00.6]} 1... d6 {[%clk 0:03:00.2]} 2. Nf3 {[%clk 0:03:00.5]}
2... Nf6 {[%clk 0:03:01.1]} 3. Bg5 {[%clk 0:02:59.7]} 3... Nbd7 {[%clk
0:02:58.2]} 4. c3 {[%clk 0:02:58.5]} 4... e5 {[%clk 0:02:56.6]} 5. Nbd2 {[%clk
0:02:57.8]} 5... Be7 {[%clk 0:02:56.8]} 6. e4 {[%clk 0:02:55.9]} 6... O-O {[%clk
0:02:49.4]} 7. Qc2 {[%clk 0:02:52.6]} 7... c6 {[%clk 0:02:36.9]} 8. dxe5 {[%clk
0:02:49]} 8... dxe5 {[%clk 0:02:36]} 9. a4 {[%clk 0:02:44.4]} 9... Qc7 {[%clk
0:02:32.8]} 10. Be2 {[%clk 0:02:41.6]} 10... Re8 {[%clk 0:02:32.3]} 11. O-O
{[%clk 0:02:38.9]} 11... Nf8 {[%clk 0:02:32.1]} 12. Nc4 {[%clk 0:02:36.5]} 12...
Ng6 {[%clk 0:01:50.8]} 13. Ne3 {[%clk 0:02:33]} 13... h6 {[%clk 0:01:37.4]} 14.
Bxf6 {[%clk 0:02:31.1]} 14... Bxf6 {[%clk 0:01:38.3]} 15. Rad1 {[%clk
0:02:21.5]} 15... Nf4 {[%clk 0:01:37.2]} 16. Bc4 {[%clk 0:02:20.1]} 16... g6
{[%clk 0:01:33.3]} 17. Rd2 {[%clk 0:02:03.5]} 17... Kg7 {[%clk 0:01:32.7]} 18.
Rfd1 {[%clk 0:02:02.4]} 18... a5 {[%clk 0:01:32.3]} 19. Bb3 {[%clk 0:01:47.6]}
19... Be7 {[%clk 0:01:14.5]} 20. Nc4 {[%clk 0:01:16.4]} 20... Bc5 {[%clk
0:01:13.5]} 21. Nd6 {[%clk 0:01:10.3]} 21... Bxd6 {[%clk 0:00:45.8]} 22. Rxd6
{[%clk 0:01:11.2]} 22... Bg4 {[%clk 0:00:41.4]} 23. Qd2 {[%clk 0:01:02.8]} 23...
Re7 {[%clk 0:00:39.8]} 24. Qe3 {[%clk 0:00:56.8]} 24... Bxf3 {[%clk 0:00:37.7]}
25. Qxf3 {[%clk 0:00:53.9]} 25... Qb6 {[%clk 0:00:28.8]} 26. Bc4 {[%clk
0:00:47.9]} 26... Qxb2 {[%clk 0:00:26.9]} 27. g3 {[%clk 0:00:48.1]} 27... Nh3+
{[%clk 0:00:15.4]} 28. Kg2 {[%clk 0:00:45.5]} 28... Ng5 {[%clk 0:00:16.3]} 29.
Qf6+ {[%clk 0:00:42.7]} 29... Kh7 {[%clk 0:00:06.8]} 30. Qxe7 {[%clk 0:00:39.5]}
1-0